Cogmind - Beta 15 @@@ ROGUE MODE // 2025.09.12 @ 12:25:17 Player: Petvaria Result: Destroyed by C-35 Carver with Carbide Saw Performance ------------- Evolutions (5) 2500 Regions Visited (6) 1200 Robots Destroyed (45) 225 Value Destroyed (1978) 1978 Prototype IDs (17) 340 Alien Tech Used (0) 0 Bonus (300) 300 TOTAL SCORE: 6543 Bonus ------- Registered with UFD 300 Cogmind --------- Core Integrity 0/1000 Matter 300/300 Energy 100/100 System Corruption 16% Temperature Cool (0) Movement Core (50) Location -5/Factory Parts ------- > --- POWER (1) -------- (None) > --- PROPULSION (5) --- (None) > --- UTILITY (4) ------ (None) > --- WEAPON (7) ------- (None) > --- INVENTORY (5) ---- Large Storage Unit Core Analyzer Peak State ------------ > --- POWER ------------ Neutrino Core > --- PROPULSION ------- Spiked Treads Spiked Treads Improved Medium Treads Carbon-fiber Leg Carbon-fiber Leg > --- UTILITY ---------- Improved Heat Sink Improved Cooling System Improved Medium Armor Plating Long-range Tractor Beam > --- WEAPON ----------- Gatling Laser Plasma Rifle Battle Rifle Overtuned Coil Gun Overtuned Railgun Enhanced Gauss Cannon Makeshift Sword > --- INVENTORY -------- Neutrino Core Neutrino Core High-capacity Storage Unit Improved Shield Generator Variable Charge Gun [Rating: 75] Favorites ----------- Power Ion Engine Engine Ion Engine Power Core Neutrino Core Propulsion Spiked Treads Treads Spiked Treads Leg Carbon-fiber Leg Utility Scrap Shield Device Improved Cooling System Storage Small Storage Unit Protection Scrap Shield Weapon Powered Cannon Energy Gun Plasma Rifle Energy Cannon Powered Cannon Ballistic Gun Assault Rifle Ballistic Cannon Battle Cannon Slashing Weapon Makeshift Sword Build | -11 -10 -10 -9 -9 -6 -5 ------- Run | Yrd Mat Sub Rec Scr Fac Fac Slots Evolved 10 | . . . . . 8 2 Power . | . . . . . . . Propulsion 3 | . . . . . 2 1 Utility 2 | . . . . . 1 1 Weapon 5 | . . . . . 5 . Parts Attached 43 | 6 2 8 . 3 12 12 Power 8 | 1 1 2 . . 1 3 Engine 5 | 1 1 2 . . 1 . Core 3 | . . . . . . 3 Reactor . | . . . . . . . Propulsion 11 | 2 . 3 . . 4 2 Treads 7 | 2 . 2 . . 2 1 Leg 4 | . . 1 . . 2 1 Wheel . | . . . . . . . Hover . | . . . . . . . Flight . | . . . . . . . Utility 7 | 1 . 1 . . 3 2 Device 3 | . . . . . 2 1 Storage 2 | 1 . . . . . 1 Processor . | . . . . . . . Hackware . | . . . . . . . Protection 2 | . . 1 . . 1 . Artifact . | . . . . . . . Weapon 17 | 2 1 2 . 3 4 5 Energy Gun 3 | . . . . . 2 1 Energy Cannon 2 | . . 1 . . . 1 Ballistic Gun 8 | 2 1 . . 2 1 2 Ballistic Cannon 3 | . . 1 . . 1 1 Launcher . | . . . . . . . Special Weapon . | . . . . . . . Impact Weapon . | . . . . . . . Slashing Weapon 1 | . . . . 1 . . Piercing Weapon . | . . . . . . . Special Melee Weapon . | . . . . . . . Unidentified Prototypes 1 | . . 1 . . . . Parts Lost 28 | . 2 2 . . 1 23 Power 4 | . 1 1 . . . 2 Propulsion 8 | . . 1 . . 1 6 Utility 4 | . . . . . . 4 Weapon 12 | . 1 . . . . 11 Highest Loss Streak 17 | . 1 1 . . 1 17 To Critical Strikes . | . . . . . . . Average Backups 5 | 2 6 5 5 5 3 4 Power . | . . . . . 2 2 Propulsion 1 | 1 4 2 2 2 . . Utility . | . . . . . . 2 Weapon 2 | . 1 2 3 3 . . Tool/Special . | . . . . . . . Unused Backups 11 | . . 3 . . . 8 Power 5 | . . . . . . 5 Propulsion 2 | . . 2 . . . . Utility 3 | . . . . . . 3 Weapon 1 | . . 1 . . . . Tool/Special . | . . . . . . . Average Slot Usage (%) 76 | . 83 76 75 71 79 84 Engine 18 | . 12 21 25 21 6 . Treads 23 | . 28 24 25 25 13 14 Leg 1 | . . . . . 5 6 Device 1 | . . . . . 9 13 Storage 1 | . 14 2 . . . 1 Protection 7 | . . 9 12 6 1 4 Energy Gun 1 | . . . . . 8 10 Energy Cannon 7 | . . 8 12 8 . . Ballistic Gun 7 | . 27 5 . 6 19 13 Ballistic Cannon 1 | . . 1 . . 5 4 Slashing Weapon 1 | . . . . 1 6 4 Peak Build Rating 75 | 6 6 26 26 26 60 75 Average Rating 26 | 5 5 21 26 23 44 63 On Entrance 20 | . 6 6 26 26 18 60 Naked Turns 41 | . . . . . . 41 Heaviest Build 96 | 14 14 37 37 37 45 96 Greatest Support 73 | 40 40 40 40 40 70 73 Greatest Overweight (x) 2 | . . 2 . . 1 1 Average Overweight (x) . | . . . . . . . Largest Inventory Capacity 20 | 8 8 8 5 5 5 20 Average Capacity 5 | 7 8 5 5 5 5 9 Most Carried 8 | 6 7 8 5 5 5 6 Average Carried 5 | 2 6 5 5 5 3 4 Final Capacity 8 | 8 8 5 5 5 5 5 Final Carried 6 | 6 6 5 5 5 5 2 Class Distribution -------------------- 86% | Mutant 5% | Derelict-Executioner 3% | Scavenger-Executioner Dominant Class ---------------- Mutant | -10/Materials Mutant | -10/Subcaves Mutant | -9/Recycling Mutant | -9/Scraptown Derelict-Executioner | -6/Factory Derelict-Executioner | -5/Factory Resources | -11 -10 -10 -9 -9 -6 -5 ----------- Run | Yrd Mat Sub Rec Scr Fac Fac Matter Collected 1706 | 195 167 379 . 20 271 674 Remotely 562 | . . . . . . 562 Salvage Created 1858 | . 167 364 . . 317 1010 Parts 94 | . 8 27 . . 13 46 Haulers Intercepted 1 | . . . . . . 1 Recyclers Shooed . | . . . . . . . Parts Field Recycled . | . . . . . . . Retrieved Matter . | . . . . . . . Parts Self-Destructed 6 | . . 6 . . . . Prevented . | . . . . . . . Kills | -11 -10 -10 -9 -9 -6 -5 ------- Run | Yrd Mat Sub Rec Scr Fac Fac Combat Hostiles Destroyed 39 | . 5 11 . . 5 18 Guns 21 | . 5 1 . . 4 11 Cannons 13 | . . 8 . . 1 4 Classes Destroyed 11 | . 2 1 . . 4 4 Worker 1 | . . . . . . 1 Builder 3 | . . . . . 1 2 Hauler 1 | . . . . . . 1 Operator 1 | . . . . . 1 . Swarmer 5 | . 2 . . . . 3 Grunt 9 | . 3 . . . 3 3 Duelist 1 | . . . . . 1 . Sentry 7 | . . . . . 1 6 Specialist 1 | . . . . . . 1 Programmer 5 | . . . . . . 5 Subdweller 11 | . . 11 . . . . Best Kill Streak 5 | . 2 2 . . 5 4 Combat Bots Only 4 | . 2 2 . . 4 4 Max Kills in Single Turn 2 | . 1 1 . . 2 2 Gunslinging . | . . . . . . . Exploded . | . . . . . . . Melee . | . . . . . . . Uniques/NPCs Destroyed . | . . . . . . . Combat | -11 -10 -10 -9 -9 -6 -5 -------- Run | Yrd Mat Sub Rec Scr Fac Fac Hostile Shots Fired 445 | . 52 69 . . 43 281 Missed 130 | . 4 24 . . 15 87 Hits 315 | . 48 45 . . 28 194 Melee 2 | . . . . . . 2 Projectile 313 | . 48 45 . . 28 192 Critical Strikes 18 | . . 1 . . 1 16 Part Disruptions 1 | . . . . . . 1 Damage Taken 5731 | . 498 1021 . . 412 3800 Core 1296 | . 44 191 . . 43 1018 Absorbed by Shields . | . . . . . . . Core Remaining (%) 66 | 100 . . . 6 94 . Volleys Fired 173 | . 30 78 . . 13 52 Largest 6 | . 2 2 . . 6 6 Hottest 349 | . 40 53 . . 285 349 Shots Fired 418 | . 59 101 . . 58 200 Gun 276 | . 59 23 . . 45 149 Cannon 142 | . . 78 . . 13 51 Launcher . | . . . . . . . Special . | . . . . . . . Kinetic 259 | . 59 48 . . 40 112 Thermal 159 | . . 53 . . 18 88 Explosive . | . . . . . . . Electromagnetic . | . . . . . . . Robot Hit Streak 14 | . 9 14 . . 6 13 Robot Miss Streak 7 | . 3 3 . . 5 7 Penetration Max 1 | . . . . . . 1 Secondary Targets 2 | . 2 . . . . . Max Gunslinging Chain 1 | . 1 . . . . . Shots Hit Robots 249 | . 40 55 . . 28 126 Core Hits 95 | . 9 16 . . 15 55 Critical Kills 4 | . 1 2 . . . 1 Critical Parts Destroyed . | . . . . . . . Critical Strikes 18 | . 1 4 . . . 13 Burn 4 | . . . . . . 4 Meltdown 2 | . . 2 . . . . Destroy 2 | . 1 . . . . 1 Blast 10 | . . 2 . . . 8 Melee Attacks 3 | . . . . . . 3 Impact . | . . . . . . . Slashing 3 | . . . . . . 3 Piercing . | . . . . . . . Sneak Attacks 2 | . . . . . . 2 Combat Hostiles . | . . . . . . . Follow-up Attacks . | . . . . . . . Damage Inflicted 6306 | . 514 1461 . . 641 3690 Guns 3515 | . 514 250 . . 522 2229 Cannons 2537 | . . 1211 . . 119 1207 Explosions 25 | . . . . . . 25 Melee 180 | . . . . . . 180 Ramming 49 | . . . . . . 49 Kinetic 3596 | . 514 686 . . 457 1939 Thermal 2456 | . . 775 . . 184 1497 Explosive . | . . . . . . . Electromagnetic 25 | . . . . . . 25 Impact . | . . . . . . . Slashing 180 | . . . . . . 180 Piercing . | . . . . . . . Highest Corruption 16 | . . . . . . 16 Average Corruption 3 | . . . . . . 3 Corruption Purged . | . . . . . . . Corruption Blocked . | . . . . . . . Effects 10 | . . . . . . 10 Message Errors 2 | . . . . . . 2 Matter Fused 1 | . . . . . . 1 Energy Discharges 4 | . . . . . . 4 Alerts 1 | . . . . . . 1 Misdirections 2 | . . . . . . 2 Overload Shots . | . . . . . . . Overflow Damage 9 | . . . . . . 9 Projectiles 9 | . . . . . . 9 Explosions . | . . . . . . . Melee . | . . . . . . . Knockbacks 13 | . . 4 . . 1 8 Impact . | . . . . . . . Kinetic 11 | . . 4 . . 1 6 Secondary 2 | . . . . . . 2 Self-Inflicted Damage 57 | . . . . . . 57 Shots 1 | . . . . . . 1 Rammed 12 | . . . . . . 12 Targets Rammed 12 | . . . . . . 12 Kicked . | . . . . . . . Crushed . | . . . . . . . Highest Temperature 542 | . . 10 . . 184 542 Average Temperature 121 | . . 5 . . 90 144 Received Heat Transfer 996 | . 234 156 . . 198 408 Effects 2 | . . . . . . 2 Interference 2 | . . . . . . 2 Siege Activations . | . . . . . . . Martial Activations . | . . . . . . . Shielding Activations . | . . . . . . . Robots Disrupted . | . . . . . . . Combat Hostiles . | . . . . . . . Robots Corrupted . | . . . . . . . Combat Hostiles . | . . . . . . . Parts Fried . | . . . . . . . Impact Corruptions . | . . . . . . . Robots Melted 5 | . . 2 . . . 3 Combat Hostiles 5 | . . 2 . . . 3 Parts Melted 12 | . . 2 . . 1 9 Heat Transferred 3691 | . . . . . 425 3266 Parts Sabotaged . | . . . . . . . Parts Stolen . | . . . . . . . Parts Stripped . | . . . . . . . Power Chain Reactions . | . . . . . . . Alert | -11 -10 -10 -9 -9 -6 -5 ------- Run | Yrd Mat Sub Rec Scr Fac Fac Maximum Alert Level 1 | . . . . . . 1 Low Security (%) 90 | 100 100 . 100 . 100 76 Level 1 9 | . . . . . . 23 Level 2 . | . . . . . . . Level 3 . | . . . . . . . Level 4 . | . . . . . . . Level 5 . | . . . . . . . High Security . | . . . . . . . Max Security . | . . . . . . . Peak Influence 267 | . 65 . 46 . 142 267 Initial 46 | . . . 46 . . 39 Average 55 | . 26 . 3 . 57 104 Influence Increases 1096 | . 135 105 . . 218 638 Destroy 0b10 Robot/C 560 | . 100 . . . 100 360 Destroy 0b10 Robot/NC 30 | . . . . . 10 20 Destroy Leader 112 | . 20 . . . 20 72 Disable Machine 105 | . . . . . 45 60 Destroy Structure 109 | . . . . . 43 66 Lose Combat Pursuer 180 | . 15 105 . . . 60 Influence Decreases 944 | . 135 8 97 . 136 568 Entered New Map 94 | . . . 51 . . 43 Time Decay 590 | . 115 8 46 . 126 295 Lost Part 260 | . 20 . . . 10 230 Squads Dispatched 9 | . 1 . . . . 8 Investigation . | . . . . . . . Extermination 1 | . . . . . . 1 Reinforcement 2 | . 1 . . . . 1 Assault . | . . . . . . . Garrison 6 | . . . . . . 6 Intercept . | . . . . . . . Searches Triggered . | . . . . . . . Construction Impeded . | . . . . . . . Haulers Reinforced . | . . . . . . . Active Scanning Responses . | . . . . . . . Cargo Convoy Interrupts 1 | . . . . . . 1 Stealth | -11 -10 -10 -9 -9 -6 -5 --------- Run | Yrd Mat Sub Rec Scr Fac Fac Distress Signals 2 | . . . . . . 2 Communications Jammed . | . . . . . . . Distress Signals . | . . . . . . . Times Spotted 68 | . 7 16 . . 5 40 Peak Tracking Total 12 | . 3 2 . . 4 12 Tactical Retreats 9 | . 1 4 . . . 4 Traps | -11 -10 -10 -9 -9 -6 -5 ------- Run | Yrd Mat Sub Rec Scr Fac Fac Traps Triggered 7 | . . 4 . . . 3 Indirectly . | . . . . . . . Trap Hack Attempts . | . . . . . . . Triggered . | . . . . . . . Disarmed . | . . . . . . . Reprogrammed . | . . . . . . . Reused . | . . . . . . . Traps Extracted . | . . . . . . . Installed . | . . . . . . . Triggered . | . . . . . . . Machines | -11 -10 -10 -9 -9 -6 -5 ---------- Run | Yrd Mat Sub Rec Scr Fac Fac Machines Disabled 7 | . . . . . 3 4 Max in Single Turn 2 | . . . . . 2 1 Machines Repaired . | . . . . . . . Machines Dismantled . | . . . . . . . Machines Sabotaged . | . . . . . . . Overloaded Fab Kills . | . . . . . . . Hacking | -11 -10 -10 -9 -9 -6 -5 --------- Run | Yrd Mat Sub Rec Scr Fac Fac Machines Accessed 3 | . . 2 . . . 1 Terminals . | . . . . . . . Fabricators . | . . . . . . . Repair Stations . | . . . . . . . Recycling Units . | . . . . . . . Scanalyzers . | . . . . . . . Garrison Access 1 | . . . . . . 1 Total Hacks 7 | . . 5 . . . 2 Successful 5 | . . 5 . . . . Failed 2 | . . . . . . 2 Catastrophic . | . . . . . . . Database Lockouts . | . . . . . . . Manual . | . . . . . . . Terminals . | . . . . . . . Fabricators . | . . . . . . . Repair Stations . | . . . . . . . Recycling Units . | . . . . . . . Scanalyzers . | . . . . . . . Garrison Access 2 | . . . . . . 2 Terminal Hacks 5 | . . 5 . . . . Record 4 | . . 4 . . . . Proto ID Catalog 1 | . . 1 . . . . Fabricator Hacks . | . . . . . . . Repair Station Hacks . | . . . . . . . Recycling Unit Hacks . | . . . . . . . Scanalyzer . | . . . . . . . Garrison Access Hacks . | . . . . . . . Unauthorized Hacks . | . . . . . . . Terminals . | . . . . . . . Fabricators . | . . . . . . . Repair Stations . | . . . . . . . Recycling Units . | . . . . . . . Scanalyzers . | . . . . . . . Garrison Access . | . . . . . . . Data Cores Recovered . | . . . . . . . Used . | . . . . . . . Hacking Detections 1 | . . . . . . 1 Full Trace Events . | . . . . . . . Feedback Events . | . . . . . . . Feedback Blocked . | . . . . . . . Robot Schematics Acquired . | . . . . . . . Robots Built . | . . . . . . . Authchips . | . . . . . . . Time . | . . . . . . . Total Robot Build Rating . | . . . . . . . Part Schematics Acquired . | . . . . . . . Parts Built . | . . . . . . . Authchips . | . . . . . . . Time . | . . . . . . . Total Part Build Rating . | . . . . . . . Parts Repaired . | . . . . . . . Time . | . . . . . . . Parts Recycled . | . . . . . . . Recycled Matter . | . . . . . . . Retrieved Matter . | . . . . . . . Retrieved Components . | . . . . . . . Parts Scanalyzed . | . . . . . . . Part Schematics Acquired . | . . . . . . . Parts Damaged . | . . . . . . . Bothacking | -11 -10 -10 -9 -9 -6 -5 ------------ Run | Yrd Mat Sub Rec Scr Fac Fac Used RIF Installer . | . . . . . . . Robots Hacked . | . . . . . . . Non-combat . | . . . . . . . Combat . | . . . . . . . Robot Hacks Applied . | . . . . . . . Relay Couplers Released . | . . . . . . . Fabnet Peak Effective % . | . . . . . . . Robots Rewired . | . . . . . . . Allies Hacked . | . . . . . . . Hacks Repelled . | . . . . . . . Allies | -11 -10 -10 -9 -9 -6 -5 -------- Run | Yrd Mat Sub Rec Scr Fac Fac Total Allies . | . . . . . . . Largest Group . | . . . . . . . Highest-Rated Group . | . . . . . . . Highest-Rated Ally . | . . . . . . . Total Orders . | . . . . . . . Ally Attacks . | . . . . . . . Total Damage . | . . . . . . . Kills . | . . . . . . . Allies Corrupted . | . . . . . . . Allies Melted . | . . . . . . . Intel | -11 -10 -10 -9 -9 -6 -5 ------- Run | Yrd Mat Sub Rec Scr Fac Fac Active Infowar (turns) . | . . . . . . . Robot Analysis Total . | . . . . . . . Derelict Logs Recovered 5 | . . 3 . 2 . . Drone Launches . | . . . . . . . Drone Recoveries . | . . . . . . . Exploration | -11 -10 -10 -9 -9 -6 -5 ------------- Run | Yrd Mat Sub Rec Scr Fac Fac Turns Passed 9010 | 122 345 3610 640 2973 306 1014 Spaces Moved 4949 | 70 83 1930 393 1848 143 482 Core 100 | 6 . . . . . 94 Treads 4807 | 64 83 1888 393 1848 143 388 Legs 42 | . . 42 . . . . Wheels . | . . . . . . . Hover . | . . . . . . . Flight . | . . . . . . . Fastest Speed 50 | 50 160 160 160 160 160 50 Average Speed 161 | 150 160 162 160 160 165 159 Slowest Speed 260 | 160 160 260 160 160 260 253 Overloaded Moves . | . . . . . . . Propulsion Burnouts . | . . . . . . . Robots Hopped . | . . . . . . . Potential Cave-ins . | . . . . . . . Cave-ins Triggered . | . . . . . . . Exploration Rate (%) 45 | 5 21 93 83 93 5 15 Regions Visited 6 Branch Regions 3 Pre-discovered Areas 3 | . . 2 . 1 . . Known Exits Taken 1 | . . . . . 1 . Unknown Exits Taken 5 | 1 1 1 1 1 . . Scrap Searched 11 | . . 6 . 5 . . Spaces Dug 8 | . . 8 . . . . Terrain Destroyed 104 | . . 16 . . 43 45 Melee . | . . . . . . . Projectile 69 | . . 16 . . 8 45 AOE 35 | . . . . . 35 . Terrain Rammed . | . . . . . . . Walls Destroyed . | . . . . . . . Machines Disabled . | . . . . . . . Actions | -11 -10 -10 -9 -9 -6 -5 --------- Run | Yrd Mat Sub Rec Scr Fac Fac Total 5692 | 87 236 2302 404 1863 185 615 Wait 443 | . 120 262 12 12 6 31 Move 4943 | 69 82 1929 392 1847 142 482 Hop . | . . . . . . . Pick Up 41 | 12 2 7 . . 10 10 Fast Attach 12 | . . 3 . 2 2 5 Attach 26 | 6 2 2 . . 10 6 Detach 1 | . . . . . . 1 Swap 11 | . . 6 . 1 1 3 Drop 21 | . . 9 . 1 1 10 Fire 173 | . 30 78 . . 13 52 Melee 3 | . . . . . . 3 Ram 12 | . . . . . . 12 Kick . | . . . . . . . Crush . | . . . . . . . Escape Stasis . | . . . . . . . Rewire . | . . . . . . . Trap . | . . . . . . . Miscellaneous 6 | . . 6 . . . . Route ------- -11/Scrapyard -10/Materials -10/Subcaves (discovered 2 exits: [*Mat] / [*Rec]) -9/Recycling -9/Scraptown (discovered 2 exits: [*Fac x2]) -6/Factory (discovered 3 exits: *Fac x2 / Low) -5/Factory (discovered 1 exit: [*Fac]) History --------- Turn | Location | Event 9 | -11/Scrapyard | Discovered new exit (range 16) 123 | -11/Scrapyard | Entered Materials 311 | -10/Materials | Build established: Mutant 455 | -10/Materials | Discovered new exit (range 9) 468 | -10/Materials | Entered Subcaves 507 | -10/Subcaves | Curiously followed by a Cobbler waking with a query about "LVR3C" 672 | -10/Subcaves | Learned location of Zion (-7) 672 | -10/Subcaves | Met a Zionite searching for "candidates" 783 | -10/Subcaves | Visited Clippyterm 788 | -10/Subcaves | Learned Research security intel 1338 | -10/Subcaves | A Subdweller sparked back to life 1338 | -10/Subcaves | A Subdweller sparked back to life 1357 | -10/Subcaves | Core integrity fell below 50% 1380 | -10/Subcaves | Found Prototype Energy Cannon 1380 | -10/Subcaves | Identified Powered Cannon 1381 | -10/Subcaves | Attached Powered Cannon, gained temporary slot: Power 1682 | -10/Subcaves | Disturbed a concealed Subdweller 1754 | -10/Subcaves | Discovered new exit (range 9) 2160 | -10/Subcaves | Learned Materials terminal intel 2234 | -10/Subcaves | Shifting Twisted Machinery released Battle Cannon 2404 | -10/Subcaves | Core integrity fell below 20% 2734 | -10/Subcaves | A swath of the cavern ceiling suddenly collapsed 3647 | -10/Subcaves | Visited 4L-MR0's lab 3934 | -10/Subcaves | Discovered new exit (range 15) 4078 | -10/Subcaves | Entered Recycling 4679 | -9/Recycling | Scanned before Scraplab entrance 4703 | -9/Recycling | Entered Scraplab 4716 | -9/Recycling | Discovered new exit (range 2) 4718 | -9/Recycling | Entered Scraptown 5302 | -9/Scraptown | Discovered new exit (range 5) 5348 | -9/Scraptown | Scanned Subdweller tech in exchange for log data 5351 | -9/Scraptown | Learned location of 1 exit from Factory 5383 | -9/Scraptown | Received an X-ray algorithm 5409 | -9/Scraptown | Visited Assassins FH 5441 | -9/Scraptown | Visited TADAMA 5473 | -9/Scraptown | Visited Comm Corps 5622 | -9/Scraptown | Visited IN-MT5's Study 5893 | -9/Scraptown | Visited Cyclists 5936 | -9/Scraptown | Visited Fellowship of the Rings 5969 | -9/Scraptown | Visited Awakened 6006 | -9/Scraptown | Visited UFD Registry 6006 | -9/Scraptown | Registered with UFD as "Cryothruster" 6041 | -9/Scraptown | Entered Cyclist Reading Room 6115 | -9/Scraptown | Visited Science Testing Area 6160 | -9/Scraptown | Visited Scrap Suit Storage 6182 | -9/Scraptown | Visited Botcube Research 6267 | -9/Scraptown | Delivered Scrap Shield to a Scientist 6408 | -9/Scraptown | Visited Chapter 10 6451 | -9/Scraptown | Visited Infowarlord's Domain 6472 | -9/Scraptown | Visited Derelict Rescue Squad 6505 | -9/Scraptown | Visited Cartography Club 6640 | -9/Scraptown | Discovered new exit (range 5) 6728 | -9/Scraptown | Visited Research Penetration Think Tank 6766 | -9/Scraptown | Visited LU-1G1's Boring Crew 6842 | -9/Scraptown | Visited Modified Component R&D 7691 | -9/Scraptown | Entered Factory 7691 | -6/Factory | Evolved 8 slots: Propulsion x2, Utility x1, Weapon x5 7692 | -6/Factory | Identified exit to Lower Caves 7693 | -6/Factory | Identified exit to Factory 7949 | -6/Factory | Discovered exit to Factory (range 15) 7997 | -6/Factory | Entered another Factory area 7997 | -5/Factory | Evolved 2 slots: Propulsion x1, Utility x1 8152 | -5/Factory | Build established: Derelict-Executioner 8324 | -5/Factory | Garrison activated, responded to threat 8625 | -5/Factory | Garrison activated, responded to threat 8676 | -5/Factory | Lost 3 parts (2n1w) 8865 | -5/Factory | Cargo convoy interrupted 8944 | -5/Factory | System corruption reached 10% 8967 | -5/Factory | Core integrity fell below 50% 8983 | -5/Factory | Core integrity fell below 20% 9011 | -5/Factory | Discovered new exit (range 6) 9011 | -5/Factory | Destroyed by C-35 Carver with Carbide Saw Last Messages --------------- Construction Platform disabled. P-70 Sage destroyed. Slug penetrates P-70 Sage. Gauss Rifle destroyed. Hvy. Phase Cannon destroyed. Neutrino Core destroyed. ALERT: Suspicious intruders detected, dispatching Cutter reinforcements to area. Construction Platform disabled. Acquired 4 matter. Slammed into K-01 Serf. Acquired 10 matter. Slammed into K-01 Serf. K-01 Serf sends out distress signal. Slammed into K-01 Serf. Slammed into C-35 Carver. Destabilizing: System corrupted (+2). Slammed into C-35 Carver. Destabilizing: Core damaged (-20). EXIT=FOUND Map ----- +----------------------------------------------------+ | ?????????????????????????????????????????????????? | | ?????????????????????????????????????????????????? | | ?????????????????????????????????????????????????? | | ?????????????????????????????????????????????????? | | ?????????????????????????????????????????????????? | | ?????????????????????????????????????????????????? | | ?????????????????????????????????????????????????? | | ?????????????????????????????????????????????????? | | ?????????????????????????????????????????????????? | | ?????????????????????????????????????????????????? | | ?????????????????????????????????????????????????? | | ?????????????????????????????????????????????????? | | ????????????????????????? ???????????????????????? | | ????????????????????????? ???????????????????????? | | ????????????????????????? ???????????????????????? | | ????????????????????????? ???????????????????????? | | ????????????????????????# #??????????????????????? | | #################??????? ??????????????????????? | | #??????? " ??????????????????????? | | "" """" """" #??????? k ??????????????????????? | | "" """" """" #???????#k#??????????????????????? | | "T = """ """" #???????# #??????????????????????? | | "" ![%"""" """" #???????# #??????????????????????? | | ""[%*= """ """ #???????# #?????" "??????????????? | | !| %"""" """" #?#######k## " " " " ???????????? | | """" """" #?# ppsc%@c/ w #????????? | | * #?#s#####k########???????????????? | | ###"####/########?# #???# #??????????????????????? | | ??### #???### ###?# #??????????????????????? | | ????# ##### #? ??????????????????????? | | ????# T #? ??????????????????????? | | ????# "" #? H ??????????????????????? | | ????# ]% #? ??????????????????????? | | ????# %##### #? ??????????????????????? | | ????# #???###+###?###??????????????????????? | | #???## ##????????????????????????????????????? | | ??# ########??????????????????????????????? | | "" # #??????????????????????????????? | | "" + #??????????????????????????????? | | "" # """ #??????????????????????????????? | | "" ??#!! """ #??????????????????????????????? | | ????#!! !!! "" ???????????????????????????????? | | ?????# !!! F"" ???????????????????????????????? | | ###### !!! """ ##????????????????????????? | | ???????????????????? | | ^ ?????????????????? | | ^ ### ?????????????????? | | # /###/##?? ??????????????????? | | ! ! %##?? ???????????????????? | | == ####?######???????????????????? | +----------------------------------------------------+ Best States ------------- Heat Dissipation 81 Energy Generation 20 Energy Capacity 350 Matter Stores 300 Matter Capacity 300 Sight Range 16 Terrain Scan Density 10 Armor Coverage 800 Evasion (%) 50 Recoil Reduction 3 Item Schematics ----------------- None Robot Schematics ------------------ None Fabricated ------------ Nothing Repaired ---------- Nothing Alien Tech Used ----------------- None Achievements -------------- Executioner Challenges ------------ None Game ------ Seed BoreLinkedReplicator Manual? 0 Play Time 00:52:01 Cumulative 195.8 hours Start 2025.09.12 @ 11:19:53 End 2025.09.12 @ 12:25:17 Sessions 1 Manual Loads 0 Difficulty Rogue Special Mode None Game No. 163 Rogue 163 Adventurer 0 Explorer 0 Win Type - Total 10 Types 4/0/2/2/1/0/0/0/0/1 Lore% 88 Gallery% 83 Achievement% 66 Wizard Run 0 Options --------- Layout 1 ASCII 0 Keyboard 0 Movement Numpad Keybinds 0 Fullscreen 1 Font 24/Proggy Map View 50x35 Zoom Use 0% Tactical HUD 0 Map Filters NONE Filters NONE Steam 1 RUN: 07d60582-c983-445c-acdd-801a41dea226